Cogmind - Beta 15 @@@ ROGUE MODE // 2025.07.10 @ 01:29:29 Player: PoggyBison Result: Destroyed by G-47 Trooper with Particle Gun Performance ------------- Evolutions (2) 1000 Regions Visited (3) 600 Robots Destroyed (33) 165 Value Destroyed (706) 706 Prototype IDs (0) 0 Alien Tech Used (0) 0 Bonus (0) 0 TOTAL SCORE: 2471 Bonus ------- None Cogmind --------- Core Integrity 0/550 Matter 280/300 Energy 63/100 System Corruption 0% Temperature Cool (9) Movement Core (450) Ox8 Location -8/Materials Parts ------- > --- POWER (1) -------- (None) > --- PROPULSION (5) --- (None) > --- UTILITY (3) ------ Large Storage Unit Machine Analyzer Force Booster > --- WEAPON (2) ------- Katana > --- INVENTORY (15) --- Light Ion Engine Light Nuclear Core Large Storage Unit Peak State ------------ > --- POWER ------------ Light Nuclear Core > --- PROPULSION ------- Subdweller Monowheel Armored Huge Wheel Armored Huge Wheel > --- UTILITY ---------- Large Storage Unit Force Booster Improved Power Shielding > --- WEAPON ----------- Katana Scythe > --- INVENTORY -------- Light Ion Engine Aluminum Leg Aluminum Leg Large Storage Unit Machine Analyzer Force Booster Katana Katana Katana [Rating: 37] Favorites ----------- Power Ion Engine Engine Ion Engine Power Core Light Nuclear Core Propulsion Wheel Leg Aluminum Leg Wheel Wheel Utility Improved Power Shielding Device Tractor Beam Storage Small Storage Unit Processor Machine Analyzer Protection Improved Power Shielding Weapon Katana Energy Gun Subdweller Laser Energy Cannon Beam Cannon Ballistic Gun Assault Rifle Slashing Weapon Katana Build | -11 -10 -10 -8 ------- Run | Yrd Mat Sub Mat Slots Evolved 4 | . . . 4 Power . | . . . . Propulsion 3 | . . . 3 Utility 1 | . . . 1 Weapon . | . . . . Parts Attached 46 | 9 1 5 31 Power 5 | 1 . 1 3 Engine 4 | 1 . 1 2 Core 1 | . . . 1 Reactor . | . . . . Propulsion 15 | 4 . 2 9 Treads . | . . . . Leg 2 | . . . 2 Wheel 13 | 4 . 2 7 Hover . | . . . . Flight . | . . . . Utility 17 | 2 . 1 14 Device 6 | 1 . . 5 Storage 5 | 1 . . 4 Processor 1 | . . . 1 Hackware . | . . . . Protection 5 | . . 1 4 Artifact . | . . . . Weapon 9 | 2 1 1 5 Energy Gun 1 | . . 1 . Energy Cannon 1 | . 1 . . Ballistic Gun 2 | 2 . . . Ballistic Cannon . | . . . . Launcher . | . . . . Special Weapon . | . . . . Impact Weapon . | . . . . Slashing Weapon 5 | . . . 5 Piercing Weapon . | . . . . Special Melee Weapon . | . . . . Unidentified Prototypes . | . . . . Parts Lost 15 | . . . 15 Power 1 | . . . 1 Propulsion 6 | . . . 6 Utility 4 | . . . 4 Weapon 4 | . . . 4 Highest Loss Streak 14 | . . . 14 To Critical Strikes . | . . . . Average Backups 5 | 5 8 4 5 Power . | . 1 . . Propulsion 2 | 3 6 2 . Utility 1 | . . . 1 Weapon 1 | 1 1 . 2 Tool/Special . | . . . . Unused Backups 11 | 3 1 2 5 Power 1 | . . . 1 Propulsion 5 | 3 . 1 1 Utility 2 | . . . 2 Weapon 3 | . 1 1 1 Tool/Special . | . . . . Average Slot Usage (%) 87 | . 100 85 84 Engine 9 | . 14 14 7 Wheel 31 | . 28 28 33 Device 6 | . 14 . 5 Storage 7 | . 14 1 6 Protection 9 | . . 12 10 Energy Gun 1 | . . 8 . Energy Cannon 3 | . 2 14 . Ballistic Gun 5 | . 25 4 . Slashing Weapon 10 | . . . 15 Peak Build Rating 37 | 7 7 10 37 Average Rating 18 | 5 7 9 26 On Entrance 6 | . 7 7 10 Naked Turns . | . . . . Heaviest Build 39 | 14 16 30 39 Greatest Support 66 | 26 20 20 66 Greatest Overweight (x) 7 | . . 1 7 Average Overweight (x) . | . . . . Largest Inventory Capacity 15 | 8 8 8 15 Average Capacity 7 | 7 8 5 8 Most Carried 12 | 8 8 8 12 Average Carried 5 | 5 7 4 5 Final Capacity 15 | 8 8 5 15 Final Carried 8 | 8 8 5 3 Class Distribution -------------------- 48% | Mutant 27% | Scavenger-Mutant 24% | Gladiator Dominant Class ---------------- Mutant | -10/Materials Mutant | -10/Subcaves Scavenger-Mutant | -8/Materials Resources | -11 -10 -10 -8 ----------- Run | Yrd Mat Sub Mat Matter Collected 820 | 356 99 50 315 Remotely 421 | 282 99 . 40 Salvage Created 1247 | 180 188 55 824 Parts 70 | 19 11 5 35 Haulers Intercepted . | . . . . Recyclers Shooed 1 | . . . 1 Parts Field Recycled . | . . . . Retrieved Matter . | . . . . Parts Self-Destructed . | . . . . Prevented . | . . . . Kills | -11 -10 -10 -8 ------- Run | Yrd Mat Sub Mat Combat Hostiles Destroyed 18 | . 4 1 13 Melee 13 | . . . 13 Guns 5 | . 4 1 . Classes Destroyed 9 | 3 3 1 2 Worker 4 | 2 . . 2 Builder 2 | . . . 2 Tunneler 3 | 3 . . . Recycler 4 | 1 1 . 2 Watcher 2 | . 1 . 1 Swarmer 6 | . 3 . 3 Grunt 10 | . 1 . 9 Brawler 1 | . . . 1 Subdweller 1 | . . 1 . Best Kill Streak 7 | 6 3 1 7 Combat Bots Only 6 | . 3 1 6 Max Kills in Single Turn 1 | 1 1 1 1 Gunslinging . | . . . . Exploded . | . . . . Melee 1 | . . . 1 Uniques/NPCs Destroyed . | . . . . Combat | -11 -10 -10 -8 -------- Run | Yrd Mat Sub Mat Hostile Shots Fired 245 | . 31 13 201 Missed 60 | . 5 5 50 Hits 185 | . 26 8 151 Melee 10 | . . . 10 Projectile 175 | . 26 8 141 Critical Strikes 7 | . . . 7 Damage Taken 2802 | . 231 195 2376 Core 709 | . 63 91 555 Absorbed by Shields . | . . . . Redirected to Shielding 100 | . . . 100 Core Remaining (%) 69 | 100 . 38 . Volleys Fired 46 | 19 23 4 . Largest 2 | 2 2 2 . Hottest 120 | 40 80 120 . Shots Fired 82 | 28 46 8 . Gun 75 | 28 43 4 . Cannon 7 | . 3 4 . Launcher . | . . . . Special . | . . . . Kinetic 71 | 28 43 . . Thermal 11 | . 3 8 . Explosive . | . . . . Electromagnetic . | . . . . Robot Hit Streak 6 | 6 4 4 . Robot Miss Streak 6 | 2 6 1 . Penetration Max . | . . . . Secondary Targets 1 | . 1 . . Max Gunslinging Chain 1 | . 1 . . Shots Hit Robots 100 | 13 23 6 58 Core Hits 42 | 8 10 2 22 Critical Kills 1 | . 1 . . Critical Parts Destroyed . | . . . . Critical Strikes 10 | . 1 . 9 Meltdown 1 | . 1 . . Sever 9 | . . . 9 Melee Attacks 89 | . . . 89 Impact . | . . . . Slashing 89 | . . . 89 Piercing . | . . . . Sneak Attacks 8 | . . . 8 Combat Hostiles 1 | . . . 1 Follow-up Attacks 13 | . . . 13 Damage Inflicted 2686 | 150 246 114 2176 Guns 440 | 150 229 61 . Cannons 70 | . 17 53 . Explosions . | . . . . Melee 2176 | . . . 2176 Ramming . | . . . . Kinetic 379 | 150 229 . . Thermal 131 | . 17 114 . Explosive . | . . . . Electromagnetic . | . . . . Impact . | . . . . Slashing 2176 | . . . 2176 Piercing . | . . . . Highest Corruption . | . . . . Average Corruption . | . . . . Corruption Purged . | . . . . Corruption Blocked . | . . . . Overload Shots . | . . . . Overflow Damage 169 | . . . 169 Projectiles . | . . . . Explosions . | . . . . Melee 169 | . . . 169 Knockbacks . | . . . . Impact . | . . . . Kinetic . | . . . . Secondary . | . . . . Self-Inflicted Damage . | . . . . Shots . | . . . . Rammed . | . . . . Targets Rammed . | . . . . Kicked . | . . . . Crushed . | . . . . Highest Temperature 54 | . 54 6 20 Average Temperature 15 | . 24 6 7 Received Heat Transfer 1167 | . 54 24 1089 Siege Activations . | . . . . Martial Activations . | . . . . Shielding Activations . | . . . . Robots Disrupted . | . . . . Combat Hostiles . | . . . . Robots Corrupted . | . . . . Combat Hostiles . | . . . . Parts Fried . | . . . . Impact Corruptions . | . . . . Robots Melted 1 | . 1 . . Combat Hostiles . | . . . . Parts Melted 1 | . 1 . . Heat Transferred 223 | . 37 186 . Parts Sabotaged . | . . . . Parts Stolen . | . . . . Parts Stripped . | . . . . Power Chain Reactions . | . . . . Alert | -11 -10 -10 -8 ------- Run | Yrd Mat Sub Mat Maximum Alert Level . | . . . . Low Security (%) 100 | 100 100 . 100 Level 1 . | . . . . Level 2 . | . . . . Level 3 . | . . . . Level 4 . | . . . . Level 5 . | . . . . High Security . | . . . . Max Security . | . . . . Peak Influence 179 | 10 61 . 179 Initial 6 | . 6 . . Average 64 | 1 34 . 83 Influence Increases 559 | 30 122 . 407 Destroy 0b10 Robot/C 340 | . 80 . 260 Destroy 0b10 Robot/NC 75 | 30 10 . 35 Destroy Leader 34 | . 12 . 22 Successful Hack 5 | . 5 . . Disable Machine 15 | . 15 . . Lose Combat Pursuer 90 | . . . 90 Influence Decreases 544 | 20 94 38 392 Entered New Map 23 | . 4 19 . Time Decay 371 | 20 90 19 242 Lost Part 150 | . . . 150 Squads Dispatched 3 | . 1 . 2 Investigation . | . . . . Extermination . | . . . . Reinforcement 3 | . 1 . 2 Assault . | . . . . Garrison . | . . . . Intercept . | . . . . Searches Triggered . | . . . . Construction Impeded . | . . . . Haulers Reinforced . | . . . . Active Scanning Responses . | . . . . Cargo Convoy Interrupts . | . . . . Stealth | -11 -10 -10 -8 --------- Run | Yrd Mat Sub Mat Distress Signals 6 | . 2 . 4 Communications Jammed . | . . . . Distress Signals . | . . . . Times Spotted 55 | . 10 8 37 Peak Tracking Total 10 | . 4 6 10 Tactical Retreats 6 | . . 1 5 Traps | -11 -10 -10 -8 ------- Run | Yrd Mat Sub Mat Traps Triggered . | . . . . Indirectly . | . . . . Trap Hack Attempts . | . . . . Triggered . | . . . . Disarmed . | . . . . Reprogrammed . | . . . . Reused . | . . . . Traps Extracted . | . . . . Installed . | . . . . Triggered . | . . . . Machines | -11 -10 -10 -8 ---------- Run | Yrd Mat Sub Mat Machines Disabled 1 | . 1 . . Max in Single Turn 1 | . 1 . . Machines Repaired . | . . . . Machines Dismantled . | . . . . Machines Sabotaged . | . . . . Overloaded Fab Kills . | . . . . Hacking | -11 -10 -10 -8 --------- Run | Yrd Mat Sub Mat Machines Accessed 1 | . 1 . . Terminals 1 | . 1 . . Fabricators . | . . . . Repair Stations . | . . . . Recycling Units . | . . . . Scanalyzers . | . . . . Garrison Access . | . . . . Total Hacks 1 | . 1 . . Successful 1 | . 1 . . Failed . | . . . . Catastrophic . | . . . . Database Lockouts . | . . . . Manual . | . . . . Terminals 1 | . 1 . . Fabricators . | . . . . Repair Stations . | . . . . Recycling Units . | . . . . Scanalyzers . | . . . . Garrison Access . | . . . . Terminal Hacks 1 | . 1 . . Hauler Manifests 1 | . 1 . . Fabricator Hacks . | . . . . Repair Station Hacks . | . . . . Recycling Unit Hacks . | . . . . Scanalyzer . | . . . . Garrison Access Hacks . | . . . . Unauthorized Hacks . | . . . . Terminals . | . . . . Fabricators . | . . . . Repair Stations . | . . . . Recycling Units . | . . . . Scanalyzers . | . . . . Garrison Access . | . . . . Data Cores Recovered . | . . . . Used . | . . . . Hacking Detections . | . . . . Full Trace Events . | . . . . Feedback Events . | . . . . Feedback Blocked . | . . . . Robot Schematics Acquired . | . . . . Robots Built . | . . . . Authchips . | . . . . Time . | . . . . Total Robot Build Rating . | . . . . Part Schematics Acquired . | . . . . Parts Built . | . . . . Authchips . | . . . . Time . | . . . . Total Part Build Rating . | . . . . Parts Repaired . | . . . . Time . | . . . . Parts Recycled . | . . . . Recycled Matter . | . . . . Retrieved Matter . | . . . . Retrieved Components . | . . . . Parts Scanalyzed . | . . . . Part Schematics Acquired . | . . . . Parts Damaged . | . . . . Bothacking | -11 -10 -10 -8 ------------ Run | Yrd Mat Sub Mat Used RIF Installer . | . . . . Robots Hacked . | . . . . Non-combat . | . . . . Combat . | . . . . Robot Hacks Applied . | . . . . Relay Couplers Released . | . . . . Fabnet Peak Effective % . | . . . . Robots Rewired . | . . . . Allies Hacked . | . . . . Hacks Repelled . | . . . . Allies | -11 -10 -10 -8 -------- Run | Yrd Mat Sub Mat Total Allies . | . . . . Largest Group . | . . . . Highest-Rated Group . | . . . . Highest-Rated Ally . | . . . . Total Orders . | . . . . Ally Attacks . | . . . . Total Damage . | . . . . Kills . | . . . . Allies Corrupted . | . . . . Allies Melted . | . . . . Intel | -11 -10 -10 -8 ------- Run | Yrd Mat Sub Mat Active Infowar (turns) 34 | . . . 34 Machine Analysis 34 | . . . 34 Robot Analysis Total . | . . . . Derelict Logs Recovered . | . . . . Drone Launches . | . . . . Drone Recoveries . | . . . . Exploration | -11 -10 -10 -8 ------------- Run | Yrd Mat Sub Mat Turns Passed 1133 | 119 190 149 675 Spaces Moved 734 | 58 153 123 400 Core 2 | 1 . . 1 Treads . | . . . . Legs 6 | . . . 6 Wheels 726 | 57 153 123 393 Hover . | . . . . Flight . | . . . . Fastest Speed 50 | 50 80 80 80 Average Speed 91 | 85 80 94 94 Slowest Speed 400 | 90 80 95 400 Overloaded Moves . | . . . . Propulsion Burnouts . | . . . . Robots Hopped . | . . . . Potential Cave-ins . | . . . . Cave-ins Triggered . | . . . . Exploration Rate (%) 21 | 4 35 12 35 Regions Visited 3 Branch Regions 1 Pre-discovered Areas . | . . . . Known Exits Taken . | . . . . Unknown Exits Taken 3 | 1 1 1 . Scrap Searched . | . . . . Spaces Dug . | . . . . Terrain Destroyed . | . . . . Melee . | . . . . Projectile . | . . . . AOE . | . . . . Terrain Rammed . | . . . . Walls Destroyed . | . . . . Machines Disabled . | . . . . Actions | -11 -10 -10 -8 --------- Run | Yrd Mat Sub Mat Total 1015 | 98 178 151 588 Wait 36 | . . 4 32 Move 731 | 57 152 122 400 Hop . | . . . . Pick Up 35 | 10 1 3 21 Fast Attach 19 | 6 . 2 11 Attach 23 | 1 . 3 19 Detach 3 | . . 1 2 Swap 10 | 2 1 . 7 Drop 38 | 3 1 10 24 Fire 46 | 19 23 4 . Melee 72 | . . . 72 Ram . | . . . . Kick . | . . . . Crush . | . . . . Escape Stasis . | . . . . Rewire . | . . . . Trap . | . . . . Miscellaneous 2 | . . 2 . Route ------- -11/Scrapyard -10/Materials -10/Subcaves -8/Materials History --------- Turn | Location | Event 8 | -11/Scrapyard | Discovered new exit (range 15) 120 | -11/Scrapyard | Entered Materials 305 | -10/Materials | Discovered new exit (range 7) 310 | -10/Materials | Entered Subcaves 311 | -10/Subcaves | Approached by a straggling Scientist 314 | -10/Subcaves | Build established: Mutant 353 | -10/Subcaves | Shifting Twisted Machinery released Scrap Shield 354 | -10/Subcaves | Shifting Twisted Machinery released Sub. Laser 394 | -10/Subcaves | Ambushed by swarm of Subdwellers 394 | -10/Subcaves | Ambushed by Subdwellers from Twisted Machinery 441 | -10/Subcaves | Lost 4 allies 449 | -10/Subcaves | Core integrity fell below 50% 456 | -10/Subcaves | Discovered new exit (range 3) 459 | -10/Subcaves | Entered Materials 459 | -8/Materials | Evolved 4 slots: Propulsion x3, Utility x1 764 | -8/Materials | Build established: Scavenger-Mutant 1101 | -8/Materials | Core integrity fell below 50% 1126 | -8/Materials | Core integrity fell below 20% 1134 | -8/Materials | Destroyed by G-47 Trooper with Particle Gun Last Messages --------------- 01094_ G-47 Trooper Aluminum Leg severed. 01095_ Arm. Huge Wheel destroyed. 01099_ Imp. Power Shielding destroyed. 01100_ Critical hit (Burn: +37). 01101_ Com. Wheel destroyed. 01101_ Katana follow-up attack on G-47 Trooper. 01101_ G-47 Trooper Particle Gun severed. 01102_ Lgt. Nuclear Core destroyed. 01103_ Sub. Monowheel destroyed. 01106_ G-47 Trooper destroyed. 01106_ Acquired 40 matter. 01111_ Aluminum Leg destroyed. 01116_ R-06 Scavenger collects Sml. Storage Unit. 01120_ R-06 Scavenger collects Particle Gun. 01122_ Imp. Heat Sink destroyed. 01123_ Aluminum Leg destroyed. 01123_ Critical hit (Burn: +37). 01127_ R-06 Scavenger collects Aluminum Leg. 01127_ Katana destroyed. 01132_ Destroyed Imp. Ion Engine. Map ----- +----------------------------------------------------+ | ?????????????????????????????????????????????????? | | ?????????????????????????????????????????????????? | | ?????????????????????????????????????????????????? | | ?????????????????????????????????????????????????? | | ?????????????????????????????????????????????????? | | ?????????????????????????????????????????????????? | | ?????????????????????????????????????????????????? | | ?????????????????????????????????????????????????? | | ?????????????????????????????????????????????????? | | ?????????????????????????????????????????????????? | | ??????????????????####+?#####+######?????????????? | | ?????????????????## ? ? ???????????? | | ?????????????????? ??? ???????????? | | ??????????????????? ??? ???""??????? | | ??????????????????##+##### ????T"??????? | | ??????????????????# """ # ????""??????? | | ??????????????????# """ # """ """ ????????????? | | ??????????????????# % "" + """ """ ??????? | | ??????????????????# %= [#* """ """ ?????? | | ??????????????????# * =+= g ?????? | | ??????????????????########% % = ?????? | | ??????????????????????#####Y####### ?????? | | ??????????????????????# % #???????##???????? | | ??????????????????????# #????????????????? | | ??????????????????????# l #????????????????? | | ??????????####????????# @ #????????????????? | | ??????????? ??????# g #???"????????????? | | ?????????????# ?????# #?? "????????????? | | ?????????????# #####g #?? "????????????? | | ?????????????# =%!+ g #?? ????????????? | | ?????????????# = ###########??+###??????????? | | ?????????????# =%*!! #T### # ?"""???????? | | ?????????????# =%=[ +??"T"???????? | | ?????????????# ##+######### ^ #????????????? | | ?????????????#????????????# #????????????? | | ??????????????????????????# ^ !] #????????????? | | ??????????????????????????# =] #????????????? | | ??????????????????????????# = #????????????? | | ??????????????????????????# #????????????? | | ??????????????????????????# #????????????? | | ????????????????????????### ## #???????###### | | ????????????????????????# ## ######### | | ????????????????????????#! !## % # | | ????????????????????????##! ! ### # | | ?????????????????????????######?# """ # ! | | ????????????????????????????????# """ # ! | | ????????????????????????????????# """ #!!! | | ???????????????????????????###### ##+### | | ???????????????????????????# | | ?????????????????????####### ##### ########### | +----------------------------------------------------+ Best States ------------- Heat Dissipation 45 Energy Generation 14 Energy Capacity 450 Matter Stores 300 Matter Capacity 450 Sight Range 16 Terrain Scan Density 10 Armor Coverage 800 Resistance: KI 20 Power Shielding 66 Evasion (%) 44 Particle Charging 15 Force Boost 20 Item Schematics ----------------- None Robot Schematics ------------------ None Fabricated ------------ Nothing Repaired ---------- Nothing Alien Tech Used ----------------- None Achievements -------------- None Challenges ------------ None Game ------ Seed SapperMiniRifle Manual? 0 Play Time 00:50:42 Cumulative 18.0 hours Start 2025.07.10 @ 00:27:08 End 2025.07.10 @ 01:29:29 Sessions 1 Manual Loads 0 Difficulty Rogue Special Mode None Game No. 9 Rogue 9 Adventurer 0 Explorer 0 Win Type - Total 0 Types 0/0/0/0/0/0/0/0/0/0 Lore% 3 Gallery% 16 Achievement% 16 Wizard Run 0 Options --------- Layout 0 ASCII 0 Keyboard 0 Movement Mouse Keybinds 0 Fullscreen 1 Font 18/X11 Map View 38x25 Zoom Use 81% Tactical HUD 1 Map Filters NONE Filters NONE Steam 1 RUN: da36d989-a7fc-4eb6-b017-d38528ca8aa2